fUST/lending_fUST_20250610
["ID","MTS","AMOUNT","RATE_DAILY","PERIOD"]
[365220949,1749544243339,-460.0,0.00021643,4]
[365220950,1749544243350,-460.0,0.00021643,4]
[365220951,1749544243359,-380.0,0.00021643,4]
[365220952,1749544243370,-412.40176926,0.00021643,4]
[365220953,1749544243383,-460.0,0.00021643,4]
[365220954,1749544243393,-440.0,0.00021643,4]
[365220955,1749544243403,-460.0,0.00021643,4]
[365220956,1749544243413,-380.0,0.00021643,4]
[365220957,1749544243423,-460.0,0.00021643,4]
[365220958,1749544243433,-158.21779657,0.00021643,4]
[365220959,1749544243443,-460.0,0.00021643,4]
[365220960,1749544243453,-490.23756612,0.00021643,4]
[365220961,1749544243463,-460.0,0.00021643,4]
[365220962,1749544243473,-460.0,0.00021643,4]
[365220963,1749544243483,-460.0,0.00021643,4]
[365220964,1749544243493,-460.0,0.00021643,4]
[365220965,1749544243503,-460.0,0.00021643,4]
[365220966,1749544243513,-460.0,0.00021643,4]
[365220967,1749544243522,-460.0,0.00021643,4]
[365220968,1749544243532,-460.0,0.00021643,4]
[365220969,1749544243542,-460.0,0.00021643,4]
[365220970,1749544243552,-460.0,0.00021643,4]
[365220971,1749544243562,-460.0,0.00021643,4]
[365220972,1749544243572,-460.0,0.00021643,4]
[365220973,1749544243582,-460.0,0.00021643,4]
[365220974,1749544243592,-460.0,0.00021643,4]
[365220975,1749544243606,-380.0,0.00021643,4]
[365220976,1749544243616,-460.0,0.00021643,4]
[365220977,1749544243626,-380.0,0.00021643,4]
[365220978,1749544243636,-360.0,0.00021643,4]
[365220979,1749544243646,-460.0,0.00021643,4]
[365220980,1749544243656,-460.0,0.00021643,4]
[365220981,1749544243666,-460.0,0.00021643,4]
[365220982,1749544243676,-460.0,0.00021643,4]
[365220983,1749544243686,-460.0,0.00021643,4]
[365220984,1749544243696,-559.53405183,0.00021643,4]
[365220985,1749544243705,-460.0,0.00021643,4]
[365220986,1749544243716,-349.69853494,0.00021643,4]
[365220987,1749544243727,-460.0,0.00021643,4]
[365220988,1749544243736,-460.0,0.00021643,2]
[365220989,1749544243746,-460.0,0.00021643,4]
[365220990,1749544243756,-460.0,0.00021643,4]
[365220991,1749544243767,-460.0,0.00021643,4]
[365220992,1749544243777,-460.0,0.00021643,4]
[365220993,1749544243787,-460.0,0.00021643,4]
[365220994,1749544243798,-460.0,0.00021643,4]
[365220995,1749544243808,-888.42,0.00021643,4]
[365220996,1749544243818,-460.0,0.00021643,4]
[365220997,1749544243828,-460.0,0.00021643,4]
[365220998,1749544243839,-460.0,0.00021643,4]
[365220999,1749544243849,-460.0,0.00021643,4]
[365221000,1749544243859,-460.0,0.00021643,4]
[365221001,1749544243869,-460.0,0.00021643,4]
[365221002,1749544243879,-460.0,0.00021643,4]
[365221003,1749544243889,-835.92,0.00021643,4]
[365221004,1749544243899,-240.01932301,0.00021643,4]
[365221005,1749544243909,-460.0,0.00021643,4]
[365221006,1749544243919,-460.0,0.00021643,4]
[365221007,1749544243929,-460.0,0.00021643,4]
[365221008,1749544243938,-460.0,0.00021643,4]
[365221009,1749544243948,-460.0,0.00021643,4]
[365221010,1749544243957,-460.0,0.00021643,4]
[365221011,1749544243967,-1966.26,0.00021643,4]
[365221012,1749544243978,-460.0,0.00021643,4]
[365221013,1749544243988,-460.0,0.00021643,4]
[365221014,1749544243998,-460.0,0.00021643,4]
[365221015,1749544244008,-460.0,0.00021643,4]
[365221016,1749544244018,-460.0,0.00021643,4]
[365221017,1749544244028,-937.01,0.00021643,4]
[365221018,1749544244037,-460.0,0.00021643,4]
[365221019,1749544244047,-1075.58,0.00021643,4]
[365221020,1749544244057,-407.99635171,0.00021643,4]
[365221021,1749544244067,-350.0,0.00021643,2]
[365221022,1749544244077,-460.0,0.00021643,4]
[365221023,1749544244087,-460.0,0.00021643,4]
[365221025,1749544244097,-460.0,0.00021643,4]
[365221026,1749544244107,-460.0,0.00021643,4]
[365221027,1749544244117,-460.0,0.00021643,4]
[365221028,1749544244127,-460.0,0.00021643,4]
[365221029,1749544244137,-671.38,0.00021643,4]
[365221030,1749544244147,-460.0,0.00021643,4]
[365221031,1749544244157,-460.0,0.00021643,4]
[365221032,1749544244167,-460.0,0.00021643,4]
[365221033,1749544244176,-1096.62,0.00021643,4]
[365221034,1749544244187,-460.0,0.00021643,4]
[365221035,1749544244196,-460.0,0.00021643,4]
[365221036,1749544244206,-376.24098942,0.00021643,4]
[365221037,1749544244216,-460.0,0.00021643,4]
[365221038,1749544244227,-460.0,0.00021643,4]
[365221039,1749544244236,-460.0,0.00021643,4]
[365221040,1749544244246,-460.0,0.00021643,4]
[365221041,1749544244256,-460.0,0.00021643,4]
[365221042,1749544244265,-460.0,0.00021643,4]
[365221043,1749544244275,-379.90100698,0.00021643,4]
[365221044,1749544244286,-616.12524882,0.00021643,4]
[365221045,1749544244295,-201.61560781,0.0002177,5]
[365221046,1749544244305,-393.0,0.0002181,7]
[365221047,1749544244315,-500.0,0.0002183,4]
[365221048,1749544244325,-207.4,0.00021831,2]
[365221049,1749544244335,-769.41894986,0.00021831,2]
[365221050,1749544244345,-500.0,0.00021831,2]
[365221051,1749544244355,-500.0,0.00021831,2]
[365221052,1749544244364,-500.0,0.00021831,2]
[365221053,1749544244374,-500.0,0.00021831,2]
[365221054,1749544244388,-5000.0,0.00021831,2]
[365221055,1749544244398,-500.0,0.00021831,2]
[365221056,1749544244407,-500.0,0.00021831,2]
[365221057,1749544244417,-500.0,0.00021831,2]
[365221058,1749544244547,-500.0,0.00021831,2]
[365221059,1749544244571,-500.0,0.00021831,2]
[365221060,1749544244581,-500.0,0.00021831,2]
[365221061,1749544244590,-500.0,0.00021831,2]
[365221062,1749544244602,-500.0,0.00021831,2]
[365221063,1749544244611,-500.0,0.00021831,2]
[365221064,1749544244620,-500.0,0.00021831,2]
[365221065,1749544244629,-500.0,0.00021831,2]
[365221066,1749544244638,-500.0,0.00021831,2]
[365221067,1749544244648,-500.0,0.00021831,2]
[365221068,1749544244657,-500.0,0.00021831,2]
[365221069,1749544244666,-500.0,0.00021831,2]
[365221070,1749544244676,-500.0,0.00021831,2]
[365221071,1749544244685,-500.0,0.00021831,2]
[365221072,1749544244695,-500.0,0.00021831,2]
[365221073,1749544244704,-500.0,0.00021831,2]
[365221074,1749544244716,-500.0,0.00021831,2]
[365221075,1749544244725,-500.0,0.00021831,2]
[365221076,1749544244735,-500.0,0.00021831,2]
[365221077,1749544244745,-500.0,0.00021831,2]
[365221078,1749544244755,-500.0,0.00021831,2]
[365221079,1749544244766,-500.0,0.00021831,2]
[365221080,1749544244775,-500.0,0.00021831,2]
[365221081,1749544244785,-712.48,0.00021916,4]
[365221082,1749544244795,-500.0,0.00021916,4]
[365221083,1749544244804,-500.0,0.00021916,4]
[365221084,1749544244812,-380.0,0.00021917,4]
[365221085,1749544244821,-460.0,0.00021917,4]
[365221086,1749544244831,-380.0,0.00021917,4]
[365221087,1749544244841,-357.40629716,0.00021917,4]
[365221088,1749544244850,-460.0,0.00021917,4]
[365221089,1749544244860,-460.0,0.00021917,4]
[365221090,1749544244870,-460.0,0.00021917,4]
[365221091,1749544244879,-603.16,0.00021917,4]
[365221092,1749544244889,-460.0,0.00021917,4]
[365221093,1749544244899,-568.05769276,0.00021917,4]
[365221094,1749544244909,-320.0,0.00021917,4]
[365221095,1749544244919,-380.0,0.00021917,4]
[365221096,1749544244929,-460.0,0.00021917,4]
[365221097,1749544244939,-460.0,0.00021917,4]
[365221098,1749544244949,-592.07185193,0.00021917,4]
[365221099,1749544244959,-460.0,0.00021917,4]
[365221100,1749544244970,-460.0,0.00021917,4]
[365221101,1749544244979,-460.0,0.00021917,4]
[365221102,1749544244988,-460.0,0.00021917,4]
[365221103,1749544244998,-380.0,0.00021917,4]
[365221104,1749544245008,-380.0,0.00021917,4]
[365221105,1749544245018,-157.54005958,0.00021917,4]
[365221106,1749544245028,-460.0,0.00021917,4]
[365221107,1749544245037,-525.21,0.00021917,4]
[365221108,1749544245046,-460.0,0.00021917,4]
[365221109,1749544245056,-460.0,0.00021917,4]
[365221110,1749544245065,-460.0,0.00021917,4]
[365221111,1749544245074,-460.0,0.00021917,4]
[365221112,1749544245084,-380.0,0.00021917,4]
[365221113,1749544245092,-460.0,0.00021917,4]
[365221114,1749544245102,-460.0,0.00021917,4]
[365221115,1749544245110,-460.0,0.00021917,4]
[365221116,1749544245119,-460.0,0.00021917,2]
[365221117,1749544245128,-380.0,0.00021917,4]
[365221118,1749544245137,-380.0,0.00021917,4]
[365221119,1749544245146,-460.0,0.00021917,4]
[365221120,1749544245155,-394.31821386,0.00021917,4]
[365221121,1749544245164,-380.0,0.00021917,4]
[365221122,1749544245173,-460.0,0.00021917,4]
[365221123,1749544245183,-380.0,0.00021917,4]
[365221124,1749544245191,-380.0,0.00021917,4]
[365221125,1749544245200,-888.42,0.00021917,4]
[365221126,1749544245209,-460.0,0.00021917,4]
[365221127,1749544245221,-460.0,0.00021917,4]
[365221128,1749544245230,-460.0,0.00021917,4]
[365221129,1749544245240,-460.0,0.00021917,4]
[365221130,1749544245250,-460.0,0.00021917,4]
[365221131,1749544245260,-835.92,0.00021917,4]
[365221132,1749544245270,-380.0,0.00021917,4]
[365221133,1749544245280,-460.0,0.00021917,4]
[365221134,1749544245291,-460.0,0.00021917,4]
[365221135,1749544245301,-380.0,0.00021917,4]
[365221136,1749544245311,-380.0,0.00021917,4]
[365221137,1749544245322,-380.0,0.00021917,4]
[365221138,1749544245333,-1966.26,0.00021917,4]
[365221139,1749544245344,-380.0,0.00021917,4]
[365221140,1749544245356,-460.0,0.00021917,4]
[365221141,1749544245367,-460.0,0.00021917,4]
[365221142,1749544245379,-459.87765026,0.00021917,4]
[365221143,1749544245390,-380.0,0.00021917,4]
[365221144,1749544245402,-937.01,0.00021917,4]
[365221145,1749544245414,-460.0,0.00021917,4]
[365221146,1749544245425,-1075.58,0.00021917,4]
[365221147,1749544245436,-240.41196301,0.00021917,2]
[365221148,1749544245448,-380.0,0.00021917,4]
[365221149,1749544245459,-460.0,0.00021917,4]
[365221150,1749544245477,-380.0,0.00021917,4]
[365221151,1749544245490,-380.0,0.00021917,4]
[365221152,1749544245503,-460.0,0.00021917,4]
[365221153,1749544245514,-460.0,0.00021917,4]
[365221154,1749544245530,-671.38,0.00021917,4]
[365221155,1749544245542,-380.0,0.00021917,4]
[365221156,1749544245552,-460.0,0.00021917,4]
[365221157,1749544245563,-380.0,0.00021917,4]
[365221158,1749544245574,-1096.62,0.00021917,4]
[365221159,1749544245585,-460.0,0.00021917,4]
[365221160,1749544245598,-460.0,0.00021917,4]
[365221161,1749544245609,-380.0,0.00021917,4]
[365221162,1749544245620,-460.0,0.00021917,4]
[365221163,1749544245631,-460.0,0.00021917,4]
[365221164,1749544245643,-380.0,0.00021917,4]
[365221165,1749544245654,-460.0,0.00021917,4]
[365221166,1749544245664,-460.0,0.00021917,4]
[365221167,1749544245677,-2525.06394162,0.00021947,2]
[365221168,1749544245688,-160.0,0.0002196,3]
[365221169,1749544245699,-712.48,0.00021998,4]
[365221170,1749544245711,-500.0,0.00021998,4]
[365221171,1749544245727,-211.17751924,0.00021998,4]
[365221172,1749544245738,-712.48,0.00021999,4]
[365221173,1749544245749,-712.48,0.00021999,4]
[365221174,1749544245760,-712.48,0.00021999,4]
[365221175,1749544245770,-712.48,0.00021999,4]
[365221176,1749544245780,-57115.0,0.00022,30]
[365221177,1749544245791,-151.0,0.00022,10]
[365221178,1749544245802,-315.18454239,0.00022,30]
[365221179,1749544245812,-36025.0,0.00022,2]
[365221180,1749544245823,-44284.09362124,0.00022,2]
[365221181,1749544245834,-4254.02721369,0.00022,7]
[365221182,1749544245843,-160.86915986,0.00022,2]
[365221183,1749544245853,-161.0,0.00022,2]
[365221184,1749544245863,-744.6,0.00022007,6]
[365221185,1749544245874,-201.61560781,0.0002203,6]
[365221186,1749544245884,-2415.62,0.00022039,2]
[365221187,1749544245894,-1000.0,0.00022062,2]
[365221188,1749544245904,-393.0,0.0002207,7]
[365221189,1749544245914,-500.0,0.00022077,2]
[365221190,1749544245924,-744.6,0.00022107,4]
[365221191,1749544245935,-187.51073691,0.00022109,4]
[365221192,1749544245945,-500.0,0.00022109,4]
[365221193,1749544245955,-166.02827874,0.00022109,4]
[365221194,1749544245969,-275.43614523,0.00022109,4]
[365221195,1749544245979,-151.0,0.00022109,4]
[365221196,1749544245988,-201.92834813,0.00022109,4]
[365221197,1749544245997,-200.05389752,0.00022109,4]
[365221198,1749544246007,-500.0,0.00022136,4]
[365221199,1749544246017,-151.0,0.00022136,4]
[365221200,1749544246027,-500.0,0.00022164,4]
[365221201,1749544246037,-151.0,0.00022164,4]
[365221202,1749544246046,-1500.0,0.00022168,2]
[365221203,1749544246057,-151.0,0.00022175,7]
[365221204,1749544246067,-151.0,0.00022175,7]
[365221205,1749544246077,-712.48,0.0002219,4]
[365221206,1749544246086,-360.0,0.00022191,4]
[365221207,1749544246095,-460.0,0.00022191,4]
[365221208,1749544246105,-212.60177155,0.00022191,4]
[365221209,1749544246115,-460.0,0.00022191,4]
[365221210,1749544246124,-360.0,0.00022191,4]
[365221211,1749544246133,-380.0,0.00022191,4]
[365221212,1749544246143,-360.0,0.00022191,4]
[365221213,1749544246152,-360.0,0.00022191,4]
[365221214,1749544246162,-460.0,0.00022191,4]
[365221215,1749544246171,-360.0,0.00022191,4]
[365221216,1749544246181,-380.0,0.00022191,4]
[365221217,1749544246190,-565.85,0.00022191,4]
[365221218,1749544246200,-460.0,0.00022191,4]
[365221219,1749544246210,-360.0,0.00022191,4]
[365221220,1749544246224,-373.98981612,0.00022191,4]
[365221221,1749544246233,-460.0,0.00022191,4]
[365221222,1749544246243,-360.0,0.00022191,4]
[365221223,1749544246252,-449.71826834,0.00022191,4]
[365221224,1749544246262,-360.0,0.00022191,4]
[365221225,1749544246271,-460.0,0.00022191,2]
[365221226,1749544246281,-460.0,0.00022191,4]
[365221227,1749544246291,-460.0,0.00022191,4]
[365221228,1749544246300,-888.42,0.00022191,4]
[365221229,1749544246310,-460.0,0.00022191,4]
[365221230,1749544246320,-460.0,0.00022191,4]
[365221231,1749544246329,-380.0,0.00022191,4]
[365221232,1749544246339,-160.64,0.00022191,4]
[365221233,1749544246348,-360.0,0.00022191,4]
[365221234,1749544246358,-835.92,0.00022191,4]
[365221235,1749544246367,-460.0,0.00022191,4]
[365221236,1749544246377,-360.0,0.00022191,4]
[365221237,1749544246387,-1966.26,0.00022191,4]
[365221238,1749544246396,-380.0,0.00022191,4]
[365221239,1749544246406,-360.0,0.00022191,4]
[365221240,1749544246415,-937.01,0.00022191,4]
[365221241,1749544246425,-460.0,0.00022191,4]
[365221242,1749544246434,-1075.58,0.00022191,4]
[365221243,1749544246444,-460.0,0.00022191,4]
[365221244,1749544246454,-460.0,0.00022191,4]
[365221245,1749544246468,-460.0,0.00022191,4]
[365221246,1749544246477,-671.38,0.00022191,4]
[365221247,1749544246486,-320.0,0.00022191,4]
[365221248,1749544246496,-1096.62,0.00022191,4]
[365221249,1749544246506,-460.0,0.00022191,4]
[365221250,1749544246516,-460.0,0.00022191,4]
[365221251,1749544246527,-460.0,0.00022191,4]
[365221252,1749544246542,-348.70646529,0.00022191,4]
[365221253,1749544246552,-360.0,0.00022191,4]
[365221254,1749544246562,-460.0,0.00022191,4]
[365221255,1749544246571,-500.0,0.00022191,4]
[365221256,1749544246581,-252.70038246,0.00022191,4]
[365221257,1749544246591,-151.0,0.000222,6]
[365221258,1749544246600,-160.65084304,0.000222,69]
[365221259,1749544246614,-160.65084302,0.000222,69]
[365221260,1749544246623,-744.6,0.00022207,2]
[365221261,1749544246632,-412.75021731,0.00022219,4]
[365221262,1749544246642,-875.94,0.00022234,3]
[365221263,1749544246653,-437.96,0.00022234,3]
[365221264,1749544246664,-625.68,0.00022234,3]
[365221265,1749544246674,-312.84,0.00022234,3]
[365221266,1749544246684,-201.61560781,0.00022291,7]
[365221267,1749544246695,-744.6,0.00022307,3]
[365221268,1749544246704,-393.0,0.0002233,7]
[365221269,1749544246718,-5000.0,0.00022379,2]
[365221270,1749544246729,-151.0,0.000224,5]
[365221271,1749544246739,-744.6,0.00022407,5]
[365221272,1749544246749,-2525.06394162,0.00022423,2]
[365221273,1749544246760,-712.48,0.00022447,4]
[365221274,1749544246770,-400.0,0.00022465,2]
[365221275,1749544246780,-400.0,0.00022465,2]
[365221276,1749544246789,-400.0,0.00022465,2]
[365221277,1749544246799,-400.0,0.00022465,2]
[365221278,1749544246808,-400.0,0.00022465,2]
[365221279,1749544246818,-200.0,0.00022465,2]
[365221280,1749544246827,-460.0,0.00022465,4]
[365221281,1749544246837,-460.0,0.00022465,4]
[365221282,1749544246847,-580.0,0.00022465,4]
[365221283,1749544246856,-460.0,0.00022465,4]
[365221284,1749544246865,-314.05,0.00022465,4]
[365221285,1749544246876,-426.48,0.00022465,2]
[365221286,1749544246886,-360.0,0.00022465,4]
[365221287,1749544246895,-427.44259085,0.00022465,4]
[365221288,1749544246905,-888.42,0.00022465,4]
[365221289,1749544246914,-460.0,0.00022465,4]
[365221290,1749544246924,-460.0,0.00022465,4]
[365221291,1749544246937,-835.92,0.00022465,4]
[365221292,1749544246947,-460.0,0.00022465,4]
[365221293,1749544246956,-326.327635,0.00022465,7]
[365221294,1749544246966,-326.327635,0.00022465,7]
[365221295,1749544246975,-1966.26,0.00022465,4]
[365221296,1749544246984,-937.01,0.00022465,4]
[365221297,1749544246994,-360.0,0.00022465,4]
[365221298,1749544247004,-1075.58,0.00022465,4]
[365221299,1749544247014,-460.0,0.00022465,4]
[365221300,1749544247023,-460.0,0.00022465,4]
[365221301,1749544247033,-460.0,0.00022465,4]
[365221302,1749544247042,-671.38,0.00022465,4]
[365221303,1749544247052,-1096.62,0.00022465,4]
[365221304,1749544247062,-460.0,0.00022465,4]
[365221305,1749544247072,-460.0,0.00022465,4]
[365221306,1749544247082,-460.0,0.00022465,4]
[365221307,1749544247092,-460.0,0.00022465,4]
[365221308,1749544247101,-151.0,0.00022465,7]
[365221309,1749544247111,-151.0,0.000225,7]
[365221310,1749544247120,-1155.27794914,0.000225,2]
[365221311,1749544247129,-744.6,0.00022507,3]
[365221312,1749544247139,-712.48,0.00022546,4]
[365221313,1749544247148,-712.48,0.00022546,4]
[365221314,1749544247158,-712.48,0.00022546,4]
[365221315,1749544247167,-712.48,0.00022546,4]
[365221316,1749544247177,-712.54598872,0.00022546,4]
[365221317,1749544247278,-201.61560781,0.00022552,7]
[365221318,1749544247288,-975.804,0.00022572,2]
[365221319,1749544247298,-393.0,0.00022591,7]
[365221320,1749544247308,-744.6,0.00022607,7]
[365221321,1749544247317,-1500.0,0.0002261,2]
[365221322,1749544247326,-800.0,0.00022694,2]
[365221323,1749544247336,-183.10091402,0.00022696,2]
[365221324,1749544247346,-151.0,0.000227,8]
[365221325,1749544247356,-744.6,0.00022707,2]
[365221326,1749544247366,-200.06050339,0.00022716,2]
[365221327,1749544247375,-460.0,0.00022739,4]
[365221328,1749544247384,-217.70461231,0.00022739,4]
[365221329,1749544247394,-151.0,0.00022739,7]
[365221330,1749544247403,-151.0,0.00022739,7]
[365221331,1749544247412,-151.0,0.00022739,7]
[365221332,1749544247421,-460.0,0.00022739,4]
[365221333,1749544247431,-152.006554,0.00022739,7]
[365221334,1749544247440,-702.403516,0.00022739,2]
[365221335,1749544247450,-702.403516,0.00022739,2]
[365221336,1749544247460,-888.42,0.00022739,4]
[365221337,1749544247474,-460.0,0.00022739,4]
[365221338,1749544247484,-460.0,0.00022739,4]
[365221339,1749544247493,-835.92,0.00022739,4]
[365221340,1749544247504,-460.0,0.00022739,4]
[365221341,1749544247513,-1966.26,0.00022739,4]
[365221342,1749544247524,-937.01,0.00022739,4]
[365221343,1749544247534,-1075.58,0.00022739,4]
[365221344,1749544247544,-460.0,0.00022739,4]
[365221345,1749544247553,-460.0,0.00022739,4]
[365221346,1749544247564,-460.0,0.00022739,4]
[365221347,1749544247573,-671.38,0.00022739,4]
[365221348,1749544247583,-1096.62,0.00022739,4]
[365221349,1749544247593,-460.0,0.00022739,4]
[365221350,1749544247605,-460.0,0.00022739,4]
[365221351,1749544247615,-405.04,0.00022739,4]
[365221352,1749544247625,-460.0,0.00022739,4]
[365221353,1749544247634,-800.0,0.00022788,2]
[365221354,1749544247645,-744.6,0.00022807,6]
[365221355,1749544247655,-201.61560781,0.00022813,8]
[365221357,1749544247665,-393.0,0.00022851,7]
[365221359,1749544247677,-800.0,0.00022877,2]
[365221361,1749544247687,-2525.06394162,0.00022899,2]
[365221363,1749544247697,-151.0,0.000229,8]
[365221365,1749544247707,-744.6,0.00022907,2]
[365221366,1749544247718,-5000.0,0.00022927,2]
[365221368,1749544247728,-15767.98912434,0.0002295,7]
[365221370,1749544247738,-15767.98912434,0.0002295,7]
[365221372,1749544247747,-504.02227482,0.00022967,2]
[365221374,1749544247757,-500.0,0.00022967,2]
[365221376,1749544247766,-500.0,0.00022973,2]
[365221378,1749544247776,-500.0,0.00022973,2]
[365221380,1749544247786,-500.0,0.00022973,2]
[365221381,1749544247795,-500.0,0.00022973,2]
[365221383,1749544247805,-507.91466464,0.00022973,2]
[365221385,1749544247814,-500.0,0.00022973,2]
[365221387,1749544247824,-500.0,0.00022973,2]
[365221389,1749544247834,-500.0,0.00022973,2]
[365221391,1749544247845,-500.0,0.00022973,2]
[365221393,1749544247854,-600.0,0.00022973,2]
[365221395,1749544247863,-500.0,0.00022973,2]
[365221397,1749544247874,-3220.83,0.00022977,2]
[365221399,1749544247883,-398406.94044691,0.0002299,2]
[365221401,1749544247893,-206.40813592,0.00022999,2]
[365221403,1749544247903,-501.71124826,0.00023,2]
[365221404,1749544247914,-41324.93817449,0.00023,30]
[365221406,1749544247924,-151.0,0.00023,7]
[365221408,1749544247933,-151.532531,0.00023,7]
[365221410,1749544247943,-151.0,0.00023,7]
[365221412,1749544247954,-348.11,0.00023,7]
[365221414,1749544247966,-1396.19,0.00023,7]
[365221416,1749544247976,-151.0,0.00023,7]
[365221418,1749544247986,-500.0,0.00023,2]
[365221420,1749544247996,-500.0,0.00023,2]
[365221422,1749544248006,-158.362726,0.00023,7]
[365221424,1749544248017,-151.0,0.00023,7]
[365221426,1749544248027,-151.0,0.00023,7]
[365221427,1749544248037,-151.0,0.00023,7]
[365221429,1749544248046,-151.0,0.00023,7]
[365221431,1749544248056,-186.0,0.00023,6]
[365221433,1749544248066,-184.0,0.00023,6]
[365221435,1749544248076,-155.160346,0.00023,7]
[365221437,1749544248086,-151.0,0.00023,8]
[365221439,1749544248095,-151.0,0.00023,7]
[365221441,1749544248104,-151.0,0.00023,7]
[365221443,1749544248116,-151.0,0.00023,7]
[365221444,1749544248125,-151.0,0.00023,7]
[365221446,1749544248135,-151.0,0.00023,7]
[365221448,1749544248145,-3439.46512918,0.00023,2]
[365221450,1749544248157,-151.0,0.00023,7]
[365221452,1749544248167,-68738.79,0.00023,7]
[365221453,1749544248176,-151.0,0.00023,7]
[365221454,1749544248186,-842.5625,0.00023,30]
[365221455,1749544248196,-151.0,0.00023,7]
[365221456,1749544248206,-151.0,0.00023,7]
[365221458,1749544248217,-151.0,0.00023,7]
[365221459,1749544248227,-151.0,0.00023,7]
[365221460,1749544248237,-151.0,0.00023,6]
[365221461,1749544248247,-151.0,0.00023,7]
[365221462,1749544248257,-151.0,0.00023,7]
[365221463,1749544248268,-178.931698,0.00023,7]
[365221464,1749544248278,-151.0,0.00023,7]
[365221465,1749544248287,-159.147599,0.00023,7]
[365221466,1749544248297,-151.0,0.00023,7]
[365221467,1749544248308,-151.0,0.00023,7]
[365221468,1749544248318,-151.778115,0.00023,7]
[365221469,1749544248328,-151.150968,0.00023,7]
[365221470,1749544248338,-151.0,0.00023,7]
[365221471,1749544248347,-151.0,0.00023,7]
[365221472,1749544248357,-151.0,0.00023,7]
[365221473,1749544248367,-151.0,0.00023,7]
[365221474,1749544248378,-151.0,0.00023,7]
[365221475,1749544248387,-151.0,0.00023,7]
[365221476,1749544248397,-299.755961,0.00023,7]
[365221477,1749544248406,-299.755961,0.00023,7]
[365221478,1749544248415,-299.755961,0.00023,7]
[365221479,1749544248424,-299.755961,0.00023,7]
[365221480,1749544248432,-151.0,0.00023,7]
[365221481,1749544248441,-151.0,0.00023,7]
[365221482,1749544248449,-151.0,0.00023,7]
[365221483,1749544248459,-181.203466,0.00023,7]
[365221484,1749544248471,-179.556242,0.00023,7]
[365221485,1749544248481,-179.556242,0.00023,7]
[365221486,1749544248490,-179.556242,0.00023,7]
[365221487,1749544248500,-179.556242,0.00023,7]
[365221488,1749544248510,-1250.236646,0.00023,7]
[365221489,1749544248520,-1250.236646,0.00023,7]
[365221490,1749544248530,-151.0,0.00023,7]
[365221491,1749544248540,-184.310944,0.00023,7]
[365221492,1749544248549,-151.0,0.00023,7]
[365221493,1749544248559,-151.0,0.00023,7]
[365221494,1749544248569,-316.0,0.00023,3]
[365221495,1749544248579,-316.0,0.00023,3]
[365221496,1749544248590,-328.020454,0.00023,3]